bitfinex/quotes_SOLUSD_20240926
["timestamp","ask_amount","ask_price","bid_price","bid_amount"]
[1727384282465,20.0,154.94,154.87,16.1422]
[1727384282686,20.0,154.92,154.89,6.4561]
[1727384282871,6.4548,154.93,154.89,6.4561]
[1727384283275,20.0,154.92,154.89,6.4561]
[1727384287890,0.25098,154.94,154.89,16.1403]
[1727384288193,6.4549,154.92,154.89,16.1403]
[1727384288991,6.4549,154.92,154.88,6.4563]
[1727384290193,0.25098,154.94,154.86,12.83156062]
[1727384290375,6.4547,154.93,154.89,6.456]
[1727384291188,20.0,154.94,154.88,16.141]
[1727384291497,26.4543,154.94,154.9,6.4557]
[1727384295287,6.455,154.92,154.88,22.5974]
[1727384295697,0.25098,154.93,154.87,6.4569]
[1727384295871,0.25098,154.93,154.87,22.5991]
[1727384295872,6.4557,154.91,154.87,22.5991]
[1727384296688,6.4551,154.92,154.88,6.4565]
[1727384297197,6.4554,154.91,154.87,22.5989]
[1727384298899,0.25098,154.93,154.87,16.1422]
[1727384299077,6.455,154.92,154.88,6.4565]
[1727384299578,6.58009,154.93,154.89,7.74724943]
[1727384299778,26.4543,154.94,154.9,6.4556]
[1727384303500,6.4678,154.96,154.89,16.1401]
[1727384303501,20.0,154.95,154.91,1.29094071]
[1727384303687,26.4537,154.95,154.91,6.4552]
[1727384304982,6.4534,154.96,154.92,6.4549]
[1727384305184,6.4537,154.95,154.91,22.5932]
[1727384305385,20.2664116,154.98,154.91,16.138]
[1727384306598,20.0,154.96,154.93,6.4544]
[1727384307402,20.0,154.96,154.91,16.138]
[1727384307583,6.4535,154.96,154.92,6.4548]
[1727384308699,6.4537,154.95,154.91,22.5932]
[1727384309183,20.0,154.96,154.91,16.138]
[1727384309383,26.4532,154.96,154.92,6.4547]
[1727384309795,6.4532,154.96,154.92,7.74552553]
[1727384311798,6.4532,154.96,154.92,6.4547]
[1727384314314,6.453,154.97,154.93,7.74491372]
[1727384315411,6.453,154.97,154.94,1.29065379]
[1727384321207,0.2664116,154.98,154.91,16.138]
[1727384321516,20.2664116,154.98,154.92,6.4548]
[1727384322416,6.4537,154.95,154.92,6.4548]
[1727384323111,20.2664116,154.98,154.92,6.4548]
[1727384323412,6.4533,154.96,154.92,6.4548]
[1727384326013,6.7192116,154.98,154.95,6.4536]
[1727384326190,0.2664116,154.98,154.95,7.74418079]
[1727384326811,6.7189116,154.98,154.95,1.29058079]
[1727384329415,6.7189116,154.98,154.94,6.454]
[1727384330697,0.2664116,154.98,154.96,22.5857]
[1727384333594,0.2664116,154.98,154.96,16.1328]
[1727384333799,0.2664116,154.98,154.97,7.74328037]
[1727384333999,0.2664116,154.98,154.96,22.586]
[1727384334722,0.2664116,154.98,154.92,16.1371]
[1727384334894,6.7188116,154.98,154.94,6.4541]
[1727384335096,6.7188116,154.98,154.93,6.4544]
[1727384336291,6.4529,154.97,154.93,6.4544]
[1727384337117,6.4536,154.96,154.92,16.1371]
[1727384337314,6.4536,154.96,154.92,22.5919]
[1727384337540,0.3919016,154.98,154.94,16.1349]
[1727384337835,0.2664116,154.98,154.94,22.5888]
[1727384338001,6.7188116,154.98,154.94,22.5888]
[1727384338814,6.7188116,154.98,154.94,16.1349]
[1727384340197,0.2664116,154.98,154.94,1.29068916]
[1727384340404,0.2664116,154.98,154.96,16.1326]
[1727384340837,0.2664116,154.98,154.96,23.8763126]
[1727384341016,0.2664116,154.98,154.96,22.5858]
[1727384344014,0.2664116,154.98,154.97,7.74325673]
[1727384344521,0.2664116,154.98,154.97,6.4528]
[1727384345025,0.2664116,154.98,154.97,50.229684]
[1727384345202,0.2664116,154.98,154.97,51.51999251]
[1727384345398,0.2664116,154.98,154.97,51.64548251]
[1727384345607,0.2664116,154.98,154.97,51.77097251]
[1727384346825,0.2664116,154.98,154.97,50.480664]
[1727384347322,0.2664116,154.98,154.97,50.229684]
[1727384347526,0.2664116,154.98,154.97,43.06124462]
[1727384347729,0.2664116,154.98,154.97,30.229684]
[1727384348236,0.2664116,154.98,154.97,6.4528]
[1727384348530,0.2664116,154.98,154.96,22.5857]
[1727384349431,0.2664116,154.98,154.96,16.1326]
[1727384349730,0.2664116,154.98,154.97,6.4528]
[1727384352230,0.2664116,154.98,154.97,7.74319095]
[1727384352832,0.2664116,154.98,154.97,6.4528]
[1727384355433,0.2664116,154.98,154.93,16.1358]
[1727384355730,0.2664116,154.98,154.95,6.4533]
[1727384356112,6.7191116,154.98,154.94,6.454]
[1727384356435,6.7191116,154.98,154.95,6.4536]
[1727384356436,0.2664116,154.98,154.95,6.4536]
[1727384358420,0.2664116,154.98,154.94,6.4539]
[1727384358833,0.2664116,154.98,154.96,6.4531]
[1727384367633,0.2664116,154.98,154.97,6.4528]
[1727384368653,0.2664116,154.98,154.97,44.3516106]
[1727384369043,0.2664116,154.98,154.97,44.6025906]
[1727384370043,0.2664116,154.98,154.97,43.31222462]
[1727384370338,0.2664116,154.98,154.97,63.31222462]
[1727384370546,0.2664116,154.98,154.97,63.06124462]
[1727384370721,0.2664116,154.98,154.97,6.4528]
[1727384377951,6.4531,154.97,154.92,22.5918]
[1727384378147,6.4531,154.97,154.93,6.4544]
[1727384378382,0.2664116,154.98,154.93,6.4544]
[1727384378643,6.7190116,154.98,154.93,6.4544]
[1727384380250,6.2888,154.97,154.92,22.592]
[1727384380545,6.4537,154.95,154.92,16.1372]
[1727384380739,6.4544,154.94,154.89,16.1399]
[1727384380944,6.4542,154.94,154.89,16.1399]
[1727384381130,6.4545,154.93,154.89,16.1399]
[1727384381542,6.4541,154.94,154.89,16.1399]
[1727384382547,6.4541,154.94,154.9,6.4557]
[1727384382755,6.4538,154.95,154.9,6.4557]
[1727384385249,20.25098,154.96,154.89,22.596]
[1727384385250,6.4544,154.94,154.89,22.596]
[1727384385550,6.2888,154.97,154.93,6.4544]
[1727384385551,12.7419,154.97,154.93,6.4544]
[1727384385884,12.7416,154.97,154.93,6.4544]
[1727384386354,6.4533,154.96,154.92,6.4548]
[1727384386649,6.4533,154.96,154.91,22.593]
[1727384387058,6.4533,154.96,154.92,6.4549]
[1727384388444,12.7417,154.97,154.91,16.1378]
[1727384388648,12.7417,154.97,154.92,6.4548]
[1727384390351,6.4533,154.96,154.92,6.4548]
[1727384390661,6.4533,154.96,154.92,6.4549]
[1727384391240,6.2888,154.97,154.91,22.5931]
[1727384391241,6.4539,154.95,154.91,22.5931]
[1727384391551,6.4535,154.96,154.92,6.4548]
[1727384394335,6.4535,154.96,154.91,22.593]
[1727384395758,6.4535,154.96,154.91,16.1378]
[1727384395949,12.7418,154.97,154.92,7.74557649]
[1727384396331,12.7418,154.97,154.92,6.4548]
[1727384396537,6.454,154.95,154.91,22.593]
[1727384398647,6.454,154.95,154.91,16.1378]
[1727384399060,6.2888,154.97,154.91,16.1378]
[1727384399255,6.2888,154.97,154.89,30.232684]
[1727384399256,20.25098,154.96,154.89,30.232684]
[1727384399434,6.4542,154.94,154.9,6.4557]
[1727384400334,6.455,154.92,154.88,22.5969]
[1727384400554,22.8346,154.92,154.88,22.5969]
[1727384400754,16.3796,154.92,154.84,29.08480785]
[1727384400953,16.3796,154.92,154.87,6.457]
[1727384400954,6.4554,154.91,154.87,6.457]
[1727384401462,13.0133,154.91,154.87,6.457]
[1727384402638,13.0133,154.91,154.84,0.1136649]
[1727384402639,0.12549,154.9,154.84,0.1136649]
[1727384402844,6.5579,154.91,154.86,6.457]
[1727384402845,13.0133,154.91,154.86,6.457]
[1727384403043,13.0133,154.91,154.87,1.29122016]
[1727384403966,42.1622,154.89,154.84,0.1136649]
[1727384404170,22.7522,154.93,154.85,12.82614295]
[1727384404356,0.12549,154.89,154.85,6.4577]
[1727384404559,7.87321016,154.89,154.83,6.4586]
[1727384405075,7.87321016,154.89,154.82,16.1467]
[1727384405076,6.457,154.88,154.82,22.6054]
[1727384405372,6.4572,154.87,154.82,22.6054]
[1727384405743,1.29122016,154.86,154.83,20.0]
[1727384406144,6.4575,154.86,154.83,20.0]
[1727384406353,6.4579,154.85,154.81,0.238124]
[1727384406646,7.74952016,154.84,154.81,0.238124]
[1727384407571,22.7522,154.86,154.81,0.238124]
[1727384407871,22.7522,154.86,154.81,6.697624]
[1727384407872,0.12549,154.85,154.81,6.697624]
[1727384408568,6.58339,154.85,154.81,0.238124]
[1727384410768,7.87461016,154.85,154.81,0.238124]
[1727384410971,6.58339,154.85,154.81,0.238124]
[1727384412249,7.87461016,154.85,154.81,0.238124]
[1727384413671,7.87461016,154.85,154.81,6.697624]
[1727384413966,6.58339,154.85,154.81,6.697624]
[1727384414167,6.58339,154.85,154.81,0.238124]
[1727384415467,6.4591,154.82,154.81,0.238124]
[1727384415671,7.87581016,154.82,154.81,0.238124]
[1727384416264,1.29122016,154.88,154.81,0.238124]
[1727384416474,6.4571,154.87,154.82,6.459]
[1727384417776,0.12549,154.86,154.82,6.459]
[1727384417982,0.12549,154.86,154.81,14.35601898]
[1727384418158,0.12549,154.86,154.83,6.4586]
[1727384418363,6.4562,154.89,154.85,6.4577]
[1727384420070,0.12549,154.88,154.85,6.4577]
[1727384421879,0.12549,154.89,154.85,6.4577]
[1727384422374,6.58189,154.89,154.84,22.6033]
[1727384422953,0.12549,154.89,154.84,16.1452]
[1727384423159,6.58129,154.9,154.85,1.29149743]
[1727384423359,6.58129,154.9,154.84,16.1452]
[1727384424376,6.58129,154.9,154.86,6.4574]
[1727384425453,0.12549,154.9,154.84,16.1452]
[1727384425676,0.12549,154.88,154.84,22.6031]
[1727384426176,6.58169,154.89,154.84,16.1452]
[1727384426376,6.58169,154.89,154.85,6.4578]
[1727384432962,6.58129,154.9,154.86,6.457]
[1727384433172,29.207,154.93,154.89,6.456]
[1727384434898,6.4548,154.93,154.89,6.456]
[1727384435273,22.2479,154.97,154.9,16.1389]
[1727384435473,6.454,154.95,154.91,6.4552]
[1727384435684,1.29122016,154.94,154.9,22.5945]
[1727384437091,7.74542016,154.94,154.9,22.5945]
[1727384437295,7.74542016,154.94,154.9,16.1389]
[1727384437980,6.70558,154.93,154.89,6.456]
[1727384438182,1.29122016,154.92,154.88,12.82614295]
[1727384438386,7.74612016,154.92,154.88,19.28254295]
[1727384438906,0.25098,154.91,154.8,10.17402669]
[1727384439193,0.12549,154.89,154.86,6.4574]
[1727384441396,6.4546,154.93,154.86,30.26028267]
[1727384441585,20.0,154.96,154.9,16.1387]
[1727384441779,6.4541,154.94,154.9,22.5944]
[1727384442395,20.0,154.96,154.91,6.4553]
[1727384442601,6.4536,154.96,154.91,6.4553]
[1727384442993,22.2479,154.97,154.91,6.4553]
[1727384443194,6.4536,154.95,154.91,6.4553]
[1727384446881,7.99660016,154.94,154.9,16.1387]
[1727384447081,7.99660016,154.94,154.9,22.5943]
[1727384447307,7.99660016,154.94,154.9,16.1387]
[1727384448207,7.74582016,154.93,154.89,6.4561]
[1727384448790,0.12549,154.92,154.89,6.4561]
[1727384449506,1.41671016,154.92,154.89,6.4561]
[1727384450120,0.12549,154.92,154.89,6.4561]
[1727384450789,0.12549,154.93,154.89,6.4561]
[1727384452017,0.12549,154.93,154.9,6.4557]
[1727384452613,0.12549,154.93,154.88,12.82614295]
[1727384452815,0.12549,154.93,154.89,6.4561]
[1727384453819,0.25098,154.91,154.88,20.0]
[1727384454019,0.25098,154.91,154.88,26.4565]
[1727384454393,6.70638,154.91,154.87,22.5989]
[1727384454809,0.25098,154.91,154.87,22.5989]
[1727384455620,6.455,154.92,154.88,6.4565]
[1727384456624,0.12549,154.92,154.88,6.4565]
[1727384461523,0.25098,154.92,154.88,6.4565]
[1727384461724,6.70588,154.92,154.88,6.4565]
[1727384462722,7.74662016,154.91,154.87,22.5989]
[1727384462915,1.29122016,154.91,154.88,6.4565]
[1727384463406,6.70598,154.92,154.88,6.4565]
[1727384464426,1.29122016,154.91,154.88,6.4565]
[1727384465606,0.25098,154.9,154.87,22.5986]
[1727384465929,0.12549,154.91,154.87,16.142]
[1727384466111,0.12549,154.91,154.89,6.4561]
[1727384466510,22.5375,154.96,154.89,16.14]
[1727384467313,6.4539,154.95,154.91,6.4553]
[1727384468028,0.25098,154.94,154.91,6.4553]
[1727384470036,0.25098,154.95,154.92,6.4549]
[1727384470327,0.12549,154.95,154.92,6.4549]
[1727384470522,28.9908,154.96,154.92,6.4549]
[1727384471117,6.4537,154.95,154.91,22.5933]
[1727384471626,0.12549,154.94,154.91,22.5933]
[1727384471929,0.25098,154.94,154.91,22.5933]
[1727384472310,0.25098,154.94,154.91,16.1381]
[1727384473027,6.4541,154.94,154.91,16.1381]
[1727384473228,0.25098,154.95,154.91,16.1381]
[1727384473444,6.57929,154.95,154.91,22.5934]
[1727384473935,0.12549,154.95,154.92,6.4545]
[1727384474114,0.12549,154.95,154.91,16.1381]
[1727384474315,0.12549,154.95,154.92,6.4549]
[1727384475632,6.57939,154.95,154.91,22.5933]
[1727384475832,7.74532016,154.94,154.91,16.1381]
[1727384477332,6.4541,154.94,154.91,16.1381]
[1727384478312,0.12549,154.95,154.91,16.1381]
[1727384478615,6.57919,154.95,154.91,22.5933]
[1727384479334,6.57999,154.93,154.89,6.456]
[1727384479542,0.12549,154.93,154.9,6.4557]
[1727384480941,6.57999,154.93,154.89,6.4561]
[1727384481141,6.455,154.92,154.88,22.5969]
[1727384481321,1.29122016,154.91,154.88,22.5969]
[1727384481816,7.74662016,154.91,154.88,16.1406]
[1727384482017,7.74662016,154.91,154.87,6.4569]
[1727384482533,6.4563,154.89,154.85,16.144]
[1727384482736,1.29122016,154.88,154.85,22.6017]
[1727384482933,6.4563,154.89,154.85,22.6017]
[1727384483133,0.25098,154.9,154.85,22.6017]
[1727384483462,6.70678,154.9,154.85,22.6017]
[1727384484431,6.70678,154.9,154.86,7.74856206]
[1727384484632,6.70678,154.9,154.86,6.4571]
[1727384486834,6.4545,154.94,154.88,12.82614295]
[1727384487042,6.4537,154.95,154.89,1.29105641]
[1727384487342,6.4537,154.95,154.9,6.4556]
[1727384487636,28.8475,154.97,154.93,6.4542]
[1727384487832,28.8475,154.97,154.92,6.4545]
[1727384488234,6.4533,154.96,154.92,6.4545]
[1727384488816,28.8474,154.97,154.92,6.4545]
[1727384489118,0.12549,154.96,154.92,6.4545]
[1727384489427,6.57879,154.96,154.92,6.4545]
[1727384494832,6.4537,154.95,154.91,23.88408989]
[1727384495044,28.8475,154.97,154.93,6.4543]
[1727384495242,28.8475,154.97,154.93,7.74507422]
[1727384495243,6.453,154.97,154.93,7.74507422]
[1727384495737,6.7189116,154.98,154.94,6.4537]
[1727384496039,6.7189116,154.98,154.95,16.1339]
[1727384497121,6.4529,154.97,154.93,6.4543]
[1727384498748,6.4529,154.97,154.93,7.7450448]
[1727384499544,0.2664116,154.98,154.95,6.4535]
[1727384500117,6.7191116,154.98,154.94,22.5889]
[1727384500642,0.2664116,154.98,154.95,6.4536]
[1727384501321,0.2664116,154.98,154.94,22.5888]
[1727384501943,0.2664116,154.98,154.95,1.2906004]
[1727384502140,0.2664116,154.98,154.95,7.7441004]
[1727384502553,0.2664116,154.98,154.95,1.2906004]
[1727384502851,0.2664116,154.98,154.95,6.4535]
[1727384503532,0.2664116,154.98,154.96,1.29054415]
[1727384503743,0.2664116,154.98,154.96,7.74364415]
[1727384504127,0.2664116,154.98,154.94,16.1349]
[1727384504452,6.7188116,154.98,154.94,22.5889]
[1727384506130,0.2664116,154.98,154.88,32.281]
[1727384506334,6.57839,154.97,154.93,6.4544]
[1727384506932,6.7190116,154.98,154.94,6.4537]
[1727384507156,6.7190116,154.98,154.95,1.29067799]
[1727384507640,6.7190116,154.98,154.94,6.4537]
[1727384508034,6.7190116,154.98,154.93,16.1359]
[1727384508035,6.4529,154.97,154.93,22.5901]
[1727384508235,6.7189116,154.98,154.94,6.454]
[1727384509756,6.7191116,154.98,154.93,16.1359]
[1727384510057,6.7191116,154.98,154.94,6.4541]
[1727384510445,1.54220016,154.97,154.9,16.1386]
[1727384510643,6.4535,154.96,154.92,6.4545]
[1727384510966,6.57839,154.97,154.93,7.74523585]
[1727384511129,6.4529,154.97,154.93,7.74523585]
[1727384511327,6.7191116,154.98,154.94,6.454]
[1727384513244,6.4529,154.97,154.93,6.4544]
[1727384514038,6.4532,154.96,154.92,22.5918]
[1727384514331,6.57839,154.97,154.93,6.4544]
[1727384514754,6.4529,154.97,154.93,6.4544]
[1727384514974,6.4529,154.97,154.93,6.4542]
[1727384515769,6.4529,154.97,154.93,7.74490896]
[1727384515946,6.4529,154.97,154.94,6.4541]
[1727384516258,6.7189116,154.98,154.94,6.4541]
[1727384519071,6.4529,154.97,154.93,6.4543]
[1727384520067,6.7191116,154.98,154.94,7.74467347]
[1727384520767,6.7191116,154.98,154.94,6.4539]
[1727384522464,0.2664116,154.98,154.93,1.29055908]
[1727384522674,0.2664116,154.98,154.96,6.4529]
[1727384522850,0.2664116,154.98,154.97,1.29045949]
[1727384523773,0.2664116,154.98,154.97,50.229684]
[1727384524774,0.2664116,154.98,154.97,51.51979964]
[1727384526971,0.2664116,154.98,154.97,51.77077964]
[1727384527470,0.3659327,155.08,155.01,39.27724295]
[1727384527672,0.3659327,155.08,155.01,64.4693169]
[1727384528565,0.3659327,155.08,155.01,64.5948069]
[1727384530275,0.3659327,155.08,155.01,63.17961695]
[1727384530466,0.3659327,155.08,155.01,63.05412695]
[1727384530847,0.3659327,155.08,155.01,64.34384711]
[1727384531549,0.3659327,155.08,155.01,64.59482711]
[1727384531751,0.3659327,155.08,155.01,63.30510695]
[1727384532672,0.3659327,155.08,155.01,64.59472511]
[1727384533578,0.3659327,155.08,155.01,50.227984]
[1727384533765,0.3659327,155.08,155.01,63.05412695]
[1727384534468,0.3659327,155.08,155.01,43.05412695]
[1727384535880,0.3659327,155.08,155.01,63.05412695]
[1727384537174,0.3659327,155.08,155.01,64.34378997]
[1727384538265,0.3659327,155.08,155.01,63.05412695]
[1727384538667,0.3659327,155.08,155.01,64.46926179]
[1727384539768,0.3659327,155.08,155.01,50.353474]
[1727384539969,0.3659327,155.08,155.01,63.17961695]
[1727384540677,0.3659327,155.08,155.01,26.4511]
[1727384541159,6.4487,155.07,155.01,26.4511]
[1727384541583,6.8143327,155.08,155.01,26.4511]
[1727384542080,6.8143327,155.08,155.01,51.51786325]
[1727384543391,6.4488,155.07,155.01,27.74097925]
[1727384543592,6.8142327,155.08,155.01,51.51786325]
[1727384543891,0.3659327,155.08,155.01,51.51786325]
[1727384548382,0.3659327,155.08,155.01,50.227984]
[1727384548688,6.8143327,155.08,155.01,50.227984]
[1727384550386,0.3659327,155.08,155.01,50.227984]
[1727384550582,6.8143327,155.08,155.01,51.51786257]
[1727384551168,6.8143327,155.08,155.01,50.227984]
[1727384552095,21.9815,155.06,155.01,26.4511]
[1727384553087,28.4306,155.06,155.01,26.4511]
[1727384559974,1.29122016,155.05,154.97,20.0]
[1727384560283,21.9815,155.06,154.95,32.2684]
[1727384560284,21.9815,155.06,155.01,26.4511]
[1727384560680,0.3659327,155.08,155.01,50.227984]
[1727384561301,0.3659327,155.08,155.01,50.353474]
[1727384561983,0.3659327,155.08,155.01,50.478964]
[1727384563202,0.3659327,155.08,155.07,50.225584]
[1727384563410,0.3659327,155.08,155.07,64.34110299]
[1727384564099,0.3659327,155.08,155.07,63.05172695]
[1727384564495,0.3659327,155.08,155.07,50.225584]
[1727384564875,0.3659327,155.08,155.07,26.4487]
[1727384566005,0.3659327,155.08,155.07,27.7381193]
[1727384567013,0.3659327,155.08,155.07,64.34105537]
[1727384567598,0.3659327,155.08,155.07,63.05172695]
[1727384567908,0.3659327,155.08,155.07,64.34101631]
[1727384568881,0.3659327,155.08,155.07,64.59199631]
[1727384570019,3.27e-05,155.08,155.07,64.59199631]
[1727384570205,0.0781463,155.1,155.08,44.027864]
[1727384570499,0.0781463,155.1,155.09,63.30180695]
[1727384570673,0.0781463,155.1,155.09,64.59069397]
[1727384571287,0.0781463,155.1,155.09,80.79389397]
[1727384571806,0.0781463,155.1,155.09,67.96775102]
[1727384572000,0.0781463,155.1,155.09,80.79389397]
[1727384572978,0.0781463,155.1,155.09,66.678864]
[1727384573178,0.0781463,155.1,155.09,79.50500695]
[1727384574303,0.0781463,155.1,155.09,63.30180695]
[1727384574688,0.0781463,155.1,155.09,39.27394295]
[1727384575896,0.0781463,155.1,155.09,63.05082695]
[1727384576994,0.0781463,155.1,155.09,63.30180695]
[1727384579812,0.0781463,155.1,155.09,50.224684]
[1727384579987,0.0781463,155.1,155.09,26.4478]
[1727384580616,0.0781463,155.1,155.09,6.4478]
[1727384582304,0.0781463,155.1,155.09,26.4478]
[1727384582709,0.0781463,155.1,155.08,16.1202]
[1727384582893,0.0781463,155.1,155.07,6.4485]
[1727384583100,0.0781463,155.1,155.08,1.28955035]
[1727384583288,0.0781463,155.1,155.07,16.121]
[1727384584017,0.0781463,155.1,155.08,6.4479]
[1727384584514,0.0781463,155.1,155.09,7.73722443]
[1727384585408,0.0781463,155.1,155.09,6.4478]
[1727384586696,0.0781463,155.1,155.08,7.73752429]
[1727384587413,0.0781463,155.1,155.09,6.4478]
[1727384590307,0.0781463,155.1,155.09,26.4478]
[1727384590632,0.0781463,155.1,155.09,50.224684]
[1727384590911,0.0781463,155.1,155.08,20.0]
[1727384590912,22.4316463,155.1,155.08,20.0]
[1727384591408,22.4316463,155.1,155.08,26.4481]
[1727384591715,22.4316463,155.1,155.08,6.4481]
[1727384591886,22.4316463,155.1,155.09,6.4478]
[1727384593526,0.0781463,155.1,155.09,26.4478]
[1727384599422,0.0781463,155.1,155.09,6.4478]
[1727384599928,0.0781463,155.1,155.09,26.4478]
[1727384600827,0.0781463,155.1,155.09,20.0]
[1727384601008,0.0781463,155.1,155.08,20.0]
[1727384601427,0.0781463,155.1,155.08,26.4481]
[1727384602007,0.0781463,155.1,155.08,20.0]
[1727384602223,0.0781463,155.1,155.09,26.4478]
[1727384607025,0.0781463,155.1,155.09,20.0]
[1727384607233,0.0781463,155.1,155.08,26.4481]
[1727384609219,0.0781463,155.1,155.09,6.4478]
[1727384609414,0.0781463,155.1,155.09,7.73721728]
[1727384610727,0.0781463,155.1,155.09,6.4478]
[1727384611433,0.0781463,155.1,155.08,26.4479]
[1727384611735,0.0781463,155.1,155.09,6.4478]
[1727384613112,0.0781463,155.1,155.09,7.73718598]
[1727384618142,0.0781463,155.1,155.09,6.4478]
[1727384618728,0.0781463,155.1,155.08,20.0]
[1727384618921,0.0781463,155.1,155.08,26.4479]
[1727384620417,0.0781463,155.1,155.08,26.4482]
[1727384624432,0.0781463,155.1,155.09,6.4478]
[1727384626148,0.0781463,155.1,155.09,26.4478]
[1727384631931,0.0781463,155.1,155.09,20.0]
[1727384632125,0.0781463,155.1,155.07,16.121]
[1727384632347,0.0781463,155.1,155.07,22.5696]
[1727384632652,0.0781463,155.1,155.08,20.0]
[1727384632653,7.81676646,155.1,155.08,20.0]
[1727384633333,7.81676646,155.1,155.07,16.121]
[1727384635235,1.36936646,155.1,155.07,20.0]
[1727384635434,6.4479,155.09,155.07,20.0]
[1727384635635,1.29122016,155.08,155.07,20.0]
[1727384636131,1.29122016,155.08,155.06,20.0]
[1727384637046,0.0781463,155.1,155.07,26.4483]
[1727384639655,6.5256463,155.1,155.07,26.4486]
[1727384640236,0.0781463,155.1,155.07,26.4486]
[1727384640437,6.5255463,155.1,155.07,26.4486]
[1727384641542,0.0781463,155.1,155.07,26.4486]
[1727384645342,0.0781463,155.1,155.09,6.4478]
[1727384646740,0.0781463,155.1,155.08,22.5685]
[1727384648366,7.81676646,155.1,155.06,6.4487]
[1727384648538,1.36936646,155.1,155.07,26.4486]
[1727384648736,7.81686646,155.1,155.07,20.0]
[1727384649049,1.36936646,155.1,155.07,26.4486]
[1727384649882,1.36936646,155.1,154.96,9.98025003]
[1727384649883,23.07639,155.09,154.96,9.98025003]
[1727384650039,23.07639,155.09,155.02,4.30492971]
[1727384650040,24.027864,155.04,155.02,4.30492971]
[1727384650382,12.8314,155.0,154.96,4.30547386]
[1727384650540,12.8314,155.0,154.95,16.3857678]
[1727384650541,7.74342016,154.99,154.95,0.2522678]
[1727384650739,6.4525,154.98,154.95,0.2522678]
[1727384650960,1.29122016,154.97,154.95,0.2522678]
[1727384651271,7.67072016,155.0,154.96,16.1329]
[1727384651559,6.57749,154.99,154.95,0.2522678]
[1727384651768,1.29122016,154.98,154.95,0.2522678]
[1727384651956,6.57749,154.99,154.95,0.2522678]
[1727384652165,0.12549,154.99,154.95,0.2522678]
[1727384653152,6.3795,155.0,154.98,6.4524]
[1727384653344,6.3795,155.0,154.96,16.1327]
[1727384653345,7.67072016,155.0,154.96,22.5859]
[1727384653868,6.3795,155.04,154.96,16.1327]
[1727384654057,6.3795,155.04,155.02,16.1269]
[1727384654367,6.3795,155.04,155.02,22.5776]
[1727384654541,6.3795,155.04,154.99,16.1298]
[1727384654747,1.29122016,155.03,154.99,16.1298]
[1727384655049,1.29122016,155.03,154.99,22.5817]
[1727384655474,0.12549,155.02,154.99,22.5817]
[1727384658353,6.50499,155.04,155.0,6.4515]
[1727384658546,0.12549,155.03,155.0,6.4515]
[1727384659047,6.3795,155.04,155.02,6.4507]
[1727384660568,16.5714,155.05,155.01,16.1272]
[1727384660866,12.8362,155.08,155.04,6.4499]
[1727384661168,6.3879,155.08,155.05,6.4494]
[1727384661384,6.3879,155.08,155.04,16.1245]
[1727384661385,6.3879,155.08,155.04,22.5743]
[1727384662047,0.25098,155.07,155.04,22.5743]
[1727384662865,1.54220016,155.07,154.99,20.0]
[1727384663059,1.54220016,155.07,155.02,6.4507]
[1727384663060,7.99120016,155.07,155.02,6.4507]
[1727384667354,6.69998,155.07,155.02,6.4507]
[1727384671578,0.12549,155.07,155.04,6.4499]
[1727384672375,0.12549,155.07,155.03,16.1256]
[1727384672557,0.12549,155.07,155.03,22.5758]
[1727384673860,6.57419,155.07,155.03,22.5758]
[1727384676668,6.4492,155.06,155.03,16.1256]
[1727384676980,7.74042016,155.06,155.03,16.1256]
[1727384678462,0.12549,155.07,155.03,16.1256]
[1727384678783,6.57439,155.07,155.03,22.5759]
[1727384681575,1.29122016,155.06,155.03,22.5759]
[1727384684575,6.57439,155.07,155.03,22.5759]
[1727384687588,7.86561016,155.07,155.03,22.5759]
[1727384687780,6.4491,155.06,155.03,16.1256]
[1727384688178,0.12549,155.07,155.03,16.1256]
[1727384688374,6.57429,155.07,155.03,22.5759]
[1727384690083,0.12549,155.07,155.04,6.4498]